{"text_format":"3","workbook":"xlsx","n_sheets":2,"sheets":["Начало","Счет за услуги"],"not_rendered":{"images":1,"defined_names":1},"read":"whole","date_system":"1900"}

{"sheet":"Начало","index":0,"n_rows":8,"n_cols":2,"rows_kept":8}
[null,"ОБ ЭТОМ ШАБЛОНЕ"]
[null,"Используйте этот шаблон для создания счет за услуги."]
[null,"Введите номер счета, дата, название компании, адрес, слоган и сведения о плательщике."]
[null,"Введите сведения в таблицах."]
[null,"Итог вычисляется автоматически."]
[null,"Примечание: "]
[null,"В столбце A листа «Счет за услуги» содержатся дополнительные инструкции. Их текст намерено скрыт. Чтобы удалить этот текст, выделите столбец A и нажмите клавишу DELETE. Чтобы отобразить текст, выделите столбец A и измените цвет шрифта."]
[null,"Чтобы получить дополнительные сведения о таблице, щелкните в ней ячейку, затем нажмите клавиши SHIFT+F10, выберите пункт «Таблица», а затем — «Замещающий текст»."]

{"sheet":"Счет за услуги","index":1,"n_rows":43,"n_cols":5,"rows_kept":43,"merged":[[0,1,0,2],[0,3,0,4],[1,1,1,4],[2,1,2,3],[3,1,3,3],[4,1,4,2],[5,1,5,2],[6,1,6,2],[7,1,7,2],[41,1,41,2],[41,3,41,4],[42,1,42,4]]}
["На этом листе можно создать счет за услуги. В ячейке справа добавьте логотип компании. Заголовок листа укажите в ячейке D1.  Полезные инструкции о том, как использовать этот лист, содержатся в ячейках этого столбца. Дальнейшие инструкции представлены в ячейке A3.","В этой ячейке содержится заполнитель логотипа.",null,"СЧЕТ"]
[]
["Введите название компании в ячейке справа.","Название вашей компании"]
["Введите слоган компании в ячейке справа.","Слоган вашей компании"]
["Введите почтовый адрес компании в ячейке справа и номер счета в ячейке E5.","Почтовый адрес",null,"НОМЕР СЧЕТА","Номер"]
["Введите город, регион и почтовый индекс в ячейке справа и дата в ячейке E6.","Город, регион, почтовый индекс",null,"ДАТА ",{"$f":"TODAY()","v":"2019-04-19"}]
["Введите номера телефона и факса в ячейке справа и код в ячейке E7.","Телефон, факс",null,"КОД КЛИЕНТА ","КОД"]
["Введите адрес электронной почты в ячейке справа.","Эл. почта"]
["Надпись «Плательщик» расположена в ячейке справа. Введите сведения о плательщике, такие как имя, название компании, адрес и номер телефона в ячейках C9–C13. Дальнейшие инструкции представлены в ячейке A14.","ПЛАТЕЛЬЩИК","Имя"]
[null,null,"Название компании"]
[null,null,"Почтовый адрес"]
[null,null,"Город, регион, почтовый индекс"]
[null,null,"Телефон"]
["Введите сведения в таблице «Сведения о продажах», начинающейся с ячейки справа. Дальнейшие инструкции представлены в ячейке A17.","ПРОДАВЕЦ","ДОЛЖНОСТЬ","УСЛОВИЯ ОПЛАТЫ","СРОК ОПЛАТЫ"]
[{"$nulls":3},"Оплата по получении счета"]
[]
["Введите сведения в таблице «Счет», начинающейся с ячейки справа. Промежуточный итог и итог вычисляются автоматически. Следующие инструкции указаны в ячейке A42.","КОЛИЧЕСТВО","ОПИСАНИЕ","ЦЕНА ЗА ЕДИНИЦУ","ИТОГО ПО СТРОКЕ"]
[{"$nulls":4},{"$f":"IF(SUM(B18)>0,SUM(B18*'Счет за услуги'!$D18),\"\")","v":""}]
[{"$nulls":4},{"$f":"IF(SUM(B19)>0,SUM(B19*'Счет за услуги'!$D19),\"\")","v":""}]
[{"$nulls":4},{"$f":"IF(SUM(B20)>0,SUM(B20*'Счет за услуги'!$D20),\"\")","v":""}]
[{"$nulls":4},{"$f":"IF(SUM(B21)>0,SUM(B21*'Счет за услуги'!$D21),\"\")","v":""}]
[{"$nulls":4},{"$f":"IF(SUM(B22)>0,SUM(B22*'Счет за услуги'!$D22),\"\")","v":""}]
[{"$nulls":4},{"$f":"IF(SUM(B23)>0,SUM(B23*'Счет за услуги'!$D23),\"\")","v":""}]
[{"$nulls":4},{"$f":"IF(SUM(B24)>0,SUM(B24*'Счет за услуги'!$D24),\"\")","v":""}]
[{"$nulls":4},{"$f":"IF(SUM(B25)>0,SUM(B25*'Счет за услуги'!$D25),\"\")","v":""}]
[{"$nulls":4},{"$f":"IF(SUM(B26)>0,SUM(B26*'Счет за услуги'!$D26),\"\")","v":""}]
[{"$nulls":4},{"$f":"IF(SUM(B27)>0,SUM(B27*'Счет за услуги'!$D27),\"\")","v":""}]
[{"$nulls":4},{"$f":"IF(SUM(B28)>0,SUM(B28*'Счет за услуги'!$D28),\"\")","v":""}]
[{"$nulls":4},{"$f":"IF(SUM(B29)>0,SUM(B29*'Счет за услуги'!$D29),\"\")","v":""}]
[{"$nulls":4},{"$f":"IF(SUM(B30)>0,SUM(B30*'Счет за услуги'!$D30),\"\")","v":""}]
[{"$nulls":4},{"$f":"IF(SUM(B31)>0,SUM(B31*'Счет за услуги'!$D31),\"\")","v":""}]
[{"$nulls":4},{"$f":"IF(SUM(B32)>0,SUM(B32*'Счет за услуги'!$D32),\"\")","v":""}]
[{"$nulls":4},{"$f":"IF(SUM(B33)>0,SUM(B33*'Счет за услуги'!$D33),\"\")","v":""}]
[{"$nulls":4},{"$f":"IF(SUM(B34)>0,SUM(B34*'Счет за услуги'!$D34),\"\")","v":""}]
[{"$nulls":4},{"$f":"IF(SUM(B35)>0,SUM(B35*'Счет за услуги'!$D35),\"\")","v":""}]
[{"$nulls":4},{"$f":"IF(SUM(B36)>0,SUM(B36*'Счет за услуги'!$D36),\"\")","v":""}]
[{"$nulls":4},{"$f":"IF(SUM(B37)>0,SUM(B37*'Счет за услуги'!$D37),\"\")","v":""}]
[{"$nulls":3},"ПРОМЕЖУТОЧНЫЙ ИТОГ",{"$f":"IF(SUM(E18:E37)>0,SUM(E18:E37),\"\")","v":""}]
[{"$nulls":3},"НАЛОГ С ПРОДАЖ"]
[{"$nulls":3},"ИТОГ",{"$f":"IF(SUM(E38)>0,SUM((E38*E39)+E38),\"\")","v":""}]
[]
["Название компании автоматически обновляется в ячейке D42.","Все чеки должны быть выписаны на компанию",null,{"$f":"B3","v":"Название вашей компании"}]
["В ячейке справа содержится благодарственное сообщение.","БЛАГОДАРИМ ЗА СОТРУДНИЧЕСТВО!"]